{"text_format":"1","workbook":"xlsx","n_sheets":2,"sheets":["Orçamento FAPEAP","Apoio NÃO MEXER!!!!!!"],"not_rendered":{"charts":0,"images":0,"macros":0,"external_links":0,"defined_names":0,"comments":0,"pivot_tables":0},"unopened":[],"bounds":{"document_bytes":16777216,"sheet_cells":100000,"rows_first":2000,"rows_last":500,"rows_between":2000,"halvings":0,"cell_chars":16384,"cell_head_chars":4096},"cells_cut":0,"cells_raw":0,"read":"whole","date_system":"1900"}

{"sheet":"Orçamento FAPEAP","index":0,"n_rows":29,"n_cols":11,"rows_kept":29,"cut":false,"hidden":false,"merged":[[6,4,6,6],[6,7,6,8],[6,1,6,3],[9,1,9,10],[27,1,27,10],[28,1,33,10],[1,1,2,10],[4,1,4,10],[5,1,5,3],[5,4,5,6],[5,7,5,8],[5,9,5,10],[6,9,6,10]]}
[]
[null,"REDE AMAZÔNIA LEGAL\nANEXO IV – ORÇAMENTO DA CONTRAPARTIDA FAPEAP"]
[]
[]
[null,"CONTROLE DO VALOR SOLICITADO À FAPEAP"]
[null,"Teto da contrapartida FAPEAP",null,null,"Total solicitado à FAPEAP",null,null,"Saldo disponível",null,"Situação do projeto"]
[null,638121.08,null,null,{"$f":"SUM(H12:H25)","v":0},null,null,{"$f":"B7-E7","v":638121.08},null,{"$f":"IF(E7<=B7,\"Proposta adequada\",\"Ajustar: acima do teto\")","v":"Proposta adequada"}]
[]
[]
[null,"DETALHAMENTO DA COMPOSIÇÃO DO VALOR SOLICITADO / CONTRAPARTIDA FAPEAP"]
[null,"Item de apoio","Natureza","Descrição/Finalidade","Quantidade","Meses/Parcelas","Valor unitário","Valor solicitado à FAPEAP","Observações/Justificativa","Documento de suporte  (se necessário)","Validação do item"]
[null,"Recursos de custeio e/ou capital","Custeio",null,1.0,1.0,null,{"$f":"IF(OR(E12=\"\",G12=\"\"),\"\",E12*IF(F12=\"\",1,F12)*G12)","v":""},null,null,{"$f":"IF(H12=\"\",\"\",IF(H12>=0,\"OK\",\"Valor inválido\"))","v":""}]
[null,"Bolsas de extensão tecnológica ou equivalente","Bolsa",null,1.0,1.0,null,"",null,null,""]
[null,"Bolsas de Apoio Técnico-Científico ou equivalente","Bolsa",null,1.0,1.0,null,"",null,null,""]
[null,"Auxílio-Instalação Deslocamento/Permanência - Estágio Sanduíche no País","Auxílio",null,1.0,1.0,null,"",null,null,""]
[null,"Outros tipos de apoio ","Outro",null,1.0,1.0,null,"",null,null,""]
[null,null,null,null,null,null,null,"",null,null,""]
[null,null,null,null,null,null,null,"",null,null,""]
[null,null,null,null,null,null,null,"",null,null,""]
[null,null,null,null,null,null,null,"",null,null,""]
[null,null,null,null,null,null,null,"",null,null,""]
[null,null,null,null,null,null,null,"",null,null,""]
[null,null,null,null,null,null,null,"",null,null,""]
[null,null,null,null,null,null,null,"",null,null,""]
[null,null,null,null,null,null,null,"",null,null,""]
[]
[]
[null,"INSTRUÇÕES DE PREENCHIMENTO E CONTROLE"]
[null,"1) Preencher apenas os campos em azul e branco. O valor solicitado à FAPEAP é calculado automaticamente a partir de quantidade, meses/parcelas e valor unitário.\n2) Para despesa sem parcelamento ou sem decomposição por quantidade, preencher Quantidade = 1, Meses/Parcelas = 1 e informar o valor total no campo Valor unitário.\n3) O total solicitado/contrapartida da FAPEAP não poderá ultrapassar R$ 638.121,08.\n4) A composição poderá abranger: custeio e/ou capital; bolsas de extensão tecnológica; bolsas de apoio técnico-científico; auxílio-instalação e deslocamento/permanência para Estágio Sanduíche no País; e outros apoios de interesse da PPG a ser analisado pela FAPEAP. \n5) A indicação de “Proposta adequada” refere-se apenas ao limite de preenchimento da planilha e não substitui análise técnica, orçamentária, financeira, contábil ou jurídica, nem presume disponibilidade orçamentária/financeira."]

{"sheet":"Apoio NÃO MEXER!!!!!!","index":1,"n_rows":6,"n_cols":6,"rows_kept":6,"cut":false,"hidden":false,"merged":[]}
["Itens de apoio elegíveis","Natureza da despesa","Observação",null,"Parâmetro","Valor"]
["Recursos de custeio e/ou capital","Custeio","Despesas correntes necessárias à execução do projeto.",null,"Teto da contrapartida FAPEAP",638121.08]
["Bolsas de extensão tecnológica ou equivalente","Capital","Bens permanentes e equipamentos necessários à execução.",null,"Total máximo permitido",638121.08]
["Bolsas de Apoio Técnico-Científico ou equivalente","Bolsa","Bolsas vinculadas ao desenvolvimento do projeto."]
["Auxílio-Instalação Deslocamento/Permanência - Estágio Sanduíche no País","Auxílio","Auxílio-instalação para ações previstas no projeto."]
["Outros tipos de apoio ","Outros","Outros apoios previamente justificados e compatíveis com o interesse institucional."]